fUST/lending_fUST_20250219
["ID","MTS","AMOUNT","RATE_DAILY","PERIOD"]
[353625780,1739967040939,-500.0,0.00014271,2]
[353625782,1739967040949,-500.0,0.00014271,2]
[353625784,1739967040959,-1165.68,0.00014271,2]
[353625785,1739967040968,-500.0,0.00014273,2]
[353625787,1739967040978,-500.0,0.00014273,2]
[353625789,1739967040987,-593.28968224,0.00014273,2]
[353625791,1739967040998,-1091.04,0.00014273,2]
[353625792,1739967041007,-500.0,0.00014273,2]
[353625794,1739967041018,-500.0,0.00014273,2]
[353625796,1739967041028,-500.0,0.00014273,2]
[353625798,1739967041038,-635.79,0.00014273,2]
[353625800,1739967041048,-3131.06,0.00014273,2]
[353625801,1739967041057,-528.26,0.00014273,2]
[353625803,1739967041067,-500.0,0.00014273,2]
[353625805,1739967041078,-905.02,0.00014273,2]
[353625807,1739967041088,-549.68,0.00014273,2]
[353625809,1739967041098,-3093.97,0.00014273,2]
[353625810,1739967041111,-500.0,0.00014273,2]
[353625811,1739967041121,-500.0,0.00014273,2]
[353625812,1739967041130,-658.91,0.00014273,2]
[353625813,1739967041140,-500.0,0.00014273,2]
[353625814,1739967041150,-7316.98,0.00014273,2]
[353625815,1739967041160,-500.0,0.00014273,2]
[353625817,1739967041169,-500.0,0.00014273,2]
[353625819,1739967041179,-500.0,0.00014273,2]
[353625821,1739967041189,-2777.82,0.00014273,2]
[353625823,1739967041199,-1497.46,0.00014273,2]
[353625825,1739967041209,-500.66690975,0.00014276,2]
[353625827,1739967041218,-500.0,0.00014353,2]
[353625829,1739967041228,-500.0,0.00014353,2]
[353625831,1739967041238,-500.0,0.00014353,2]
[353625833,1739967041248,-1165.68,0.00014353,2]
[353625835,1739967041257,-500.0,0.00014356,2]
[353625837,1739967041267,-447.41,0.00014356,2]
[353625839,1739967041278,-1091.04,0.00014356,2]
[353625841,1739967041291,-500.0,0.00014356,2]
[353625843,1739967041300,-500.0,0.00014356,2]
[353625845,1739967041310,-161.23745205,0.00014356,2]
[353625847,1739967041319,-635.79,0.00014356,2]
[353625849,1739967041329,-3131.06,0.00014356,2]
[353625851,1739967041339,-528.26,0.00014356,2]
[353625853,1739967041352,-157.64159546,0.00014356,2]
[353625855,1739967041364,-905.02,0.00014356,2]
[353625857,1739967041375,-549.68,0.00014356,2]
[353625859,1739967041385,-3093.97,0.00014356,2]
[353625861,1739967041394,-500.0,0.00014356,2]
[353625863,1739967041404,-500.0,0.00014356,2]
[353625865,1739967041415,-658.91,0.00014356,2]
[353625867,1739967041425,-500.0,0.00014356,2]
[353625869,1739967041434,-7316.98,0.00014356,2]
[353625871,1739967041444,-500.0,0.00014356,2]
[353625873,1739967041454,-500.0,0.00014356,2]
[353625874,1739967041463,-500.0,0.00014356,2]
[353625876,1739967041472,-2777.82,0.00014356,2]
[353625879,1739967041483,-1497.46,0.00014356,2]
[353625881,1739967041493,-151.0,0.000144,2]
[353625883,1739967041502,-500.0,0.00014436,2]
[353625885,1739967041512,-500.0,0.00014436,2]
[353625887,1739967041522,-500.0,0.00014436,2]
[353625888,1739967041531,-1165.68,0.00014436,2]
[353625890,1739967041540,-500.0,0.00014438,2]
[353625892,1739967041550,-1091.04,0.00014438,2]
[353625894,1739967041559,-500.0,0.00014438,2]
[353625896,1739967041569,-500.0,0.00014438,2]
[353625898,1739967041578,-635.79,0.00014438,2]
[353625900,1739967041588,-3131.06,0.00014438,2]
[353625902,1739967041598,-528.26,0.00014438,2]
[353625904,1739967041608,-905.02,0.00014438,2]
[353625906,1739967041618,-549.68,0.00014438,2]
[353625908,1739967041627,-3093.97,0.00014438,2]
[353625910,1739967041638,-500.0,0.00014438,2]
[353625912,1739967041648,-500.0,0.00014438,2]
[353625914,1739967041657,-658.91,0.00014438,2]
[353625916,1739967041666,-500.0,0.00014438,2]
[353625918,1739967041676,-7316.98,0.00014438,2]
[353625920,1739967041685,-500.0,0.00014438,2]
[353625922,1739967041694,-500.0,0.00014438,2]
[353625924,1739967041704,-500.0,0.00014438,2]
[353625925,1739967041713,-2777.82,0.00014438,2]
[353625927,1739967041723,-1497.46,0.00014438,2]
[353625929,1739967041732,-168.50588552,0.0001445,2]
[353625931,1739967041741,-151.0,0.000145,2]
[353625933,1739967041751,-500.0,0.00014518,2]
[353625935,1739967041760,-500.0,0.00014518,2]
[353625937,1739967041769,-500.0,0.00014518,2]
[353625938,1739967041778,-1165.68,0.00014518,2]
[353625940,1739967041788,-500.0,0.0001452,2]
[353625942,1739967041797,-1091.04,0.0001452,2]
[353625944,1739967041806,-500.0,0.0001452,2]
[353625946,1739967041815,-500.0,0.0001452,2]
[353625948,1739967041825,-635.79,0.0001452,2]
[353625949,1739967041834,-3131.06,0.0001452,2]
[353625951,1739967041844,-528.26,0.0001452,2]
[353625953,1739967041853,-905.02,0.0001452,2]
[353625955,1739967041864,-549.68,0.0001452,2]
[353625957,1739967041874,-3093.97,0.0001452,2]
[353625959,1739967041883,-500.0,0.0001452,2]
[353625961,1739967041892,-327.69103924,0.0001452,2]
[353625963,1739967041902,-658.91,0.0001452,2]
[353625965,1739967041912,-500.0,0.0001452,2]
[353625967,1739967041922,-7316.98,0.0001452,2]
[353625969,1739967041932,-500.0,0.0001452,2]
[353625971,1739967041942,-500.0,0.0001452,2]
[353625972,1739967041951,-500.0,0.0001452,2]
[353625974,1739967041961,-2777.82,0.0001452,2]
[353625976,1739967041970,-1497.46,0.0001452,2]
[353625978,1739967041979,-1000.0,0.00014521,2]
[353625980,1739967041988,-500.0,0.00014521,2]
[353625982,1739967041998,-395.877,0.00014583,2]
[353625984,1739967042007,-500.0,0.000146,2]
[353625986,1739967042016,-500.0,0.000146,2]
[353625988,1739967042026,-500.0,0.000146,2]
[353625990,1739967042035,-1165.68,0.000146,2]
[353625992,1739967042044,-500.0,0.00014602,2]
[353625994,1739967042053,-1091.04,0.00014602,2]
[353625995,1739967042062,-500.0,0.00014602,2]
[353625997,1739967042072,-500.0,0.00014602,2]
[353625999,1739967042082,-635.79,0.00014602,2]
[353626001,1739967042092,-3131.06,0.00014602,2]
[353626003,1739967042102,-528.26,0.00014602,2]
[353626005,1739967042113,-905.02,0.00014602,2]
[353626007,1739967042122,-549.68,0.00014602,2]
[353626009,1739967042132,-3093.97,0.00014602,2]
[353626012,1739967042142,-500.0,0.00014602,2]
[353626013,1739967042151,-658.91,0.00014602,2]
[353626015,1739967042160,-500.0,0.00014602,2]
[353626017,1739967042170,-7316.98,0.00014602,2]
[353626019,1739967042179,-500.0,0.00014602,2]
[353626022,1739967042189,-500.0,0.00014602,2]
[353626024,1739967042198,-500.0,0.00014602,2]
[353626026,1739967042208,-2777.82,0.00014602,2]
[353626028,1739967042218,-1497.46,0.00014602,2]
[353626030,1739967042227,-500.0,0.00014631,2]
[353626032,1739967042237,-224.0,0.00014667,2]
[353626034,1739967042247,-500.0,0.00014682,2]
[353626036,1739967042256,-500.0,0.00014682,2]
[353626037,1739967042265,-500.0,0.00014682,2]
[353626038,1739967042275,-1165.68,0.00014682,2]
[353626039,1739967042289,-520.55724376,0.00014684,2]
[353626040,1739967042299,-1091.04,0.00014684,2]
[353626042,1739967042309,-500.0,0.00014684,2]
[353626044,1739967042322,-283.25,0.00014684,2]
[353626046,1739967042331,-635.79,0.00014684,2]
[353626048,1739967042340,-3131.06,0.00014684,2]
[353626050,1739967042351,-528.26,0.00014684,2]
[353626052,1739967042362,-905.02,0.00014684,2]
[353626054,1739967042371,-549.68,0.00014684,2]
[353626056,1739967042380,-3093.97,0.00014684,2]
[353626058,1739967042389,-500.0,0.00014684,2]
[353626060,1739967042398,-658.91,0.00014684,2]
[353626062,1739967042407,-500.0,0.00014684,2]
[353626064,1739967042416,-7316.98,0.00014684,2]
[353626066,1739967042425,-500.0,0.00014684,2]
[353626067,1739967042435,-500.0,0.00014684,2]
[353626069,1739967042444,-500.0,0.00014684,2]
[353626071,1739967042453,-2777.82,0.00014684,2]
[353626073,1739967042463,-1497.46,0.00014684,2]
[353626075,1739967042472,-151.0,0.000147,2]
[353626077,1739967042482,-1000.0,0.00014712,2]
[353626079,1739967042491,-1000.0,0.00014712,2]
[353626081,1739967042500,-500.0,0.00014764,2]
[353626082,1739967042509,-434.88,0.00014764,2]
[353626084,1739967042519,-500.0,0.00014764,2]
[353626086,1739967042528,-1165.68,0.00014764,2]
[353626088,1739967042538,-1091.04,0.00014767,2]
[353626090,1739967042547,-500.0,0.00014767,2]
[353626092,1739967042556,-635.79,0.00014767,2]
[353626094,1739967042565,-3131.06,0.00014767,2]
[353626096,1739967042574,-528.26,0.00014767,2]
[353626097,1739967042583,-905.02,0.00014767,2]
[353626099,1739967042592,-549.68,0.00014767,2]
[353626101,1739967042601,-3093.97,0.00014767,2]
[353626103,1739967042612,-500.0,0.00014767,2]
[353626105,1739967042622,-658.91,0.00014767,2]
[353626107,1739967042632,-317.75207273,0.00014767,2]
[353626109,1739967042641,-7316.98,0.00014767,2]
[353626111,1739967042650,-500.0,0.00014767,2]
[353626113,1739967042660,-500.0,0.00014767,2]
[353626114,1739967042669,-500.0,0.00014767,2]
[353626116,1739967042678,-2777.82,0.00014767,2]
[353626118,1739967042688,-1497.46,0.00014767,2]
[353626120,1739967042700,-153.36348279,0.000148,2]
[353626122,1739967042710,-153.36348279,0.000148,2]
[353626124,1739967042719,-153.36348279,0.000148,2]
[353626126,1739967042728,-153.36348279,0.000148,2]
[353626128,1739967042737,-153.36348279,0.000148,2]
[353626130,1739967042746,-153.36348279,0.000148,2]
[353626144,1739967042881,-153.36,0.000148,2]
[353626146,1739967042891,-154.57016954,0.000148,2]
[353626148,1739967042900,-154.57016954,0.000148,2]
[353626150,1739967042909,-154.57016954,0.000148,2]
[353626152,1739967042919,-154.57016954,0.000148,2]
[353626154,1739967042928,-154.57016954,0.000148,2]
[353626156,1739967042937,-154.57016954,0.000148,2]
[353626157,1739967042947,-154.57016954,0.000148,2]
[353626159,1739967042956,-154.57,0.000148,2]
[353626161,1739967042970,-500.0,0.00014818,2]
[353626163,1739967042989,-1000.0,0.00014818,2]
[353626165,1739967042998,-408.34783947,0.00014847,2]
[353626167,1739967043009,-500.0,0.00014847,2]
[353626169,1739967043018,-1165.68,0.00014847,2]
[353626171,1739967043028,-1091.04,0.00014849,2]
[353626173,1739967043038,-500.0,0.00014849,2]
[353626175,1739967043047,-635.79,0.00014849,2]
[353626177,1739967043057,-3131.06,0.00014849,2]
[353626179,1739967043068,-528.26,0.00014849,2]
[353626181,1739967043078,-905.02,0.00014849,2]
[353626183,1739967043088,-549.68,0.00014849,2]
[353626185,1739967043098,-3093.97,0.00014849,2]
[353626187,1739967043108,-500.0,0.00014849,2]
[353626190,1739967043117,-658.91,0.00014849,2]
[353626193,1739967043126,-7316.98,0.00014849,2]
[353626196,1739967043137,-500.0,0.00014849,2]
[353626199,1739967043146,-500.0,0.00014849,2]
[353626202,1739967043155,-500.0,0.00014849,2]
[353626205,1739967043165,-2777.82,0.00014849,2]
[353626208,1739967043174,-1497.46,0.00014849,2]
[353626211,1739967043185,-500.0,0.00014873,2]
[353626214,1739967043194,-261.70172979,0.00014873,2]
[353626217,1739967043204,-500.0,0.00014873,2]
[353626220,1739967043213,-500.0,0.00014873,2]
[353626222,1739967043223,-500.0,0.00014873,2]
[353626225,1739967043232,-500.0,0.00014873,2]
[353626228,1739967043241,-163.32279024,0.00014873,2]
[353626231,1739967043251,-151.0,0.000149,2]
[353626234,1739967043260,-303889.470883,0.000149,2]
[353626237,1739967043271,-412.93572517,0.00014929,2]
[353626240,1739967043282,-1165.68,0.00014929,2]
[353626242,1739967043291,-1091.04,0.00014931,2]
[353626245,1739967043301,-500.0,0.00014931,2]
[353626248,1739967043310,-635.79,0.00014931,2]
[353626251,1739967043321,-3131.06,0.00014931,2]
[353626254,1739967043330,-528.26,0.00014931,2]
[353626257,1739967043339,-905.02,0.00014931,2]
[353626260,1739967043349,-549.68,0.00014931,2]
[353626261,1739967043360,-3093.97,0.00014931,2]
[353626264,1739967043370,-500.0,0.00014931,2]
[353626265,1739967043380,-658.91,0.00014931,2]
[353626268,1739967043389,-7316.98,0.00014931,2]
[353626270,1739967043398,-500.0,0.00014931,2]
[353626274,1739967043409,-500.0,0.00014931,2]
[353626277,1739967043418,-500.0,0.00014931,2]
[353626280,1739967043428,-2777.82,0.00014931,2]
[353626283,1739967043437,-1497.46,0.00014931,2]
[353626285,1739967043447,-7438.69753278,0.00014967,2]
[353626288,1739967043456,-151.0,0.00015,2]
[353626291,1739967043465,-420.0,0.0001501,2]
[353626294,1739967043475,-1165.68,0.00015011,2]
[353626296,1739967043484,-1091.04,0.00015013,2]
[353626298,1739967043493,-500.0,0.00015013,2]
[353626300,1739967043502,-635.79,0.00015013,2]
[353626302,1739967043511,-3131.06,0.00015013,2]
[353626304,1739967043521,-528.26,0.00015013,2]
[353626306,1739967043530,-905.02,0.00015013,2]
[353626308,1739967043539,-549.68,0.00015013,2]
[353626310,1739967043548,-3093.97,0.00015013,2]
[353626312,1739967043558,-500.0,0.00015013,2]
[353626314,1739967043567,-658.91,0.00015013,2]
[353626316,1739967043576,-7316.98,0.00015013,2]
[353626318,1739967043586,-500.0,0.00015013,2]
[353626320,1739967043594,-500.0,0.00015013,2]
[353626322,1739967043604,-500.0,0.00015013,2]
[353626324,1739967043615,-2777.82,0.00015013,2]
[353626326,1739967043624,-1497.46,0.00015013,2]
[353626328,1739967043633,-1907.27261752,0.00015078,2]
[353626330,1739967043643,-1165.68,0.00015093,2]
[353626332,1739967043652,-1091.04,0.00015095,2]
[353626334,1739967043662,-500.0,0.00015095,2]
[353626336,1739967043671,-635.79,0.00015095,2]
[353626338,1739967043680,-3131.06,0.00015095,2]
[353626340,1739967043689,-528.26,0.00015095,2]
[353626342,1739967043699,-905.02,0.00015095,2]
[353626344,1739967043708,-549.68,0.00015095,2]
[353626346,1739967043717,-3093.97,0.00015095,2]
[353626348,1739967043726,-500.0,0.00015095,2]
[353626350,1739967043735,-658.91,0.00015095,2]
[353626352,1739967043745,-7316.98,0.00015095,2]
[353626354,1739967043755,-255.61663562,0.00015095,2]
[353626356,1739967043764,-543.63248043,0.00015095,2]
[353626358,1739967043775,-500.0,0.00015095,2]
[353626360,1739967043784,-2777.82,0.00015095,2]
[353626362,1739967043793,-1497.46,0.00015095,2]
[353626364,1739967043803,-1165.68,0.00015175,2]
[353626366,1739967043813,-1091.04,0.00015178,2]
[353626368,1739967043822,-379.46330065,0.00015178,2]
[353626370,1739967043831,-635.79,0.00015178,2]
[353626373,1739967043840,-3131.06,0.00015178,2]
[353626374,1739967043850,-528.26,0.00015178,2]
[353626376,1739967043859,-905.02,0.00015178,2]
[353626378,1739967043869,-549.68,0.00015178,2]
[353626380,1739967043878,-3093.97,0.00015178,2]
[353626382,1739967043887,-500.0,0.00015178,2]
[353626384,1739967043897,-658.91,0.00015178,2]
[353626386,1739967043906,-7316.98,0.00015178,2]
[353626388,1739967043916,-500.0,0.00015178,2]
[353626390,1739967043925,-2777.82,0.00015178,2]
[353626392,1739967043934,-1497.46,0.00015178,2]
[353626394,1739967043943,-151.0,0.000152,2]
[353626396,1739967043953,-151.0,0.000152,2]
[353626398,1739967043962,-1000.0,0.00015222,2]
[353626400,1739967043971,-1165.68,0.00015258,2]
[353626402,1739967043981,-1091.04,0.0001526,2]
[353626404,1739967043990,-635.79,0.0001526,2]
[353626406,1739967043999,-3131.06,0.0001526,2]
[353626408,1739967044008,-528.26,0.0001526,2]
[353626410,1739967044018,-905.02,0.0001526,2]
[353626412,1739967044027,-549.68,0.0001526,2]
[353626414,1739967044036,-3093.97,0.0001526,2]
[353626416,1739967044046,-500.0,0.0001526,2]
[353626418,1739967044055,-658.91,0.0001526,2]
[353626420,1739967044065,-7316.98,0.0001526,2]
[353626422,1739967044074,-500.0,0.0001526,2]
[353626424,1739967044084,-2777.82,0.0001526,2]
[353626426,1739967044093,-1497.46,0.0001526,2]
[353626428,1739967044103,-151.0,0.000153,2]
[353626431,1739967044113,-168.50588552,0.00015313,2]
[353626433,1739967044123,-1165.68,0.0001534,2]
[353626435,1739967044132,-1091.04,0.00015342,2]
[353626437,1739967044141,-635.79,0.00015342,2]
[353626439,1739967044151,-3131.06,0.00015342,2]
[353626440,1739967044160,-528.26,0.00015342,2]
[353626442,1739967044170,-905.02,0.00015342,2]
[353626444,1739967044179,-549.68,0.00015342,2]
[353626446,1739967044188,-3093.97,0.00015342,2]
[353626448,1739967044198,-337.93304364,0.00015342,2]
[353626450,1739967044207,-658.91,0.00015342,2]
[353626452,1739967044217,-7316.98,0.00015342,2]
[353626454,1739967044226,-500.0,0.00015342,2]
[353626456,1739967044236,-2777.82,0.00015342,2]
[353626458,1739967044246,-1497.46,0.00015342,2]
[353626460,1739967044260,-1000.0,0.00015421,2]
[353626462,1739967044272,-1000.0,0.00015421,2]
[353626464,1739967044292,-522.21733561,0.00015421,2]
[353626466,1739967044302,-1072.78652871,0.00015421,2]
[353626468,1739967044311,-1165.68,0.00015422,2]
[353626470,1739967044321,-1091.04,0.00015424,2]
[353626472,1739967044331,-635.79,0.00015424,2]
[353626474,1739967044341,-3131.06,0.00015424,2]
[353626476,1739967044350,-528.26,0.00015424,2]
[353626478,1739967044360,-905.02,0.00015424,2]
[353626480,1739967044373,-549.68,0.00015424,2]
[353626482,1739967044382,-3093.97,0.00015424,2]
[353626484,1739967044391,-658.91,0.00015424,2]
[353626486,1739967044400,-7316.98,0.00015424,2]
[353626488,1739967044410,-500.0,0.00015424,2]
[353626490,1739967044419,-2777.82,0.00015424,2]
[353626492,1739967044429,-1497.46,0.00015424,2]
[353626494,1739967044438,-151.0,0.000155,2]
[353626496,1739967044448,-151.0,0.000155,2]
[353626498,1739967044459,-1165.68,0.00015504,2]
[353626500,1739967044468,-1091.04,0.00015506,2]
[353626502,1739967044478,-635.79,0.00015506,2]
[353626504,1739967044487,-3131.06,0.00015506,2]
[353626506,1739967044497,-528.26,0.00015506,2]
[353626508,1739967044507,-905.02,0.00015506,2]
[353626509,1739967044516,-549.68,0.00015506,2]
[353626510,1739967044525,-3093.97,0.00015506,2]
[353626511,1739967044534,-658.91,0.00015506,2]
[353626512,1739967044544,-7316.98,0.00015506,2]
[353626513,1739967044553,-500.0,0.00015506,2]
[353626514,1739967044562,-2777.82,0.00015506,2]
[353626515,1739967044571,-1497.46,0.00015506,2]
[353626516,1739967044580,-1500.0,0.00015522,2]
[353626517,1739967044590,-600.0,0.00015534,2]
[353626518,1739967044599,-1165.68,0.00015586,2]
[353626519,1739967044608,-1091.1,0.00015589,2]
[353626520,1739967044617,-635.98313645,0.00015589,2]
[353626521,1739967044627,-3131.23942023,0.00015589,2]
[353626522,1739967044636,-528.45,0.00015589,2]
[353626523,1739967044646,-905.19639847,0.00015589,2]
[353626524,1739967044655,-549.91902174,0.00015589,2]
[353626525,1739967044665,-3094.1655477,0.00015589,2]
[353626526,1739967044674,-659.07676196,0.00015589,2]
[353626527,1739967044683,-7317.0825,0.00015589,2]
[353626528,1739967044692,-331.46383213,0.00015589,2]
[353626529,1739967044702,-2777.98740344,0.00015589,2]
[353626530,1739967044712,-1497.61555301,0.00015589,2]
[353626532,1739967044722,-1165.75342416,0.00015669,2]
[353626534,1739967044731,-151.0,0.000157,2]
[353626536,1739967044741,-151.0,0.000157,2]
[353626538,1739967044750,-534.55773278,0.00015714,2]
[353626540,1739967044760,-1500.0,0.00015714,2]
[353626542,1739967044769,-218.130336,0.00015775,2]
[353626544,1739967044778,-151.0,0.000158,2]
[353626546,1739967044787,-1503.6147836,0.0001582,2]
[353626547,1739967044797,-4998.999999,0.00016,2]
[353626548,1739967044806,-150.0,0.00016,2]
[353626550,1739967044816,-151.0,0.00016,2]
[353626552,1739967044826,-151.0,0.00016,2]
[353626553,1739967044835,-151.0,0.000161,2]
[353626554,1739967044845,-160.0,0.00016128,3]
[353626556,1739967044855,-499.0,0.00016164,2]
[353626558,1739967044865,-500.38816275,0.00016173,2]
[353626560,1739967044874,-160.04038112,0.00016173,2]
[353626561,1739967044884,-500.0,0.00016173,2]
[353626562,1739967044894,-431.13927372,0.00016173,2]
[353626563,1739967044903,-500.0,0.00016173,2]
[353626564,1739967044912,-500.0,0.00016173,2]
[353626565,1739967044921,-500.0,0.00016173,2]
[353626566,1739967044931,-168.50588552,0.00016175,2]
[353626567,1739967044940,-151.0,0.000164,2]
[353626568,1739967044950,-151.0,0.000164,2]
[353626569,1739967044959,-500.0,0.00016409,2]
[353626570,1739967044969,-1500.0,0.00016422,2]
[353626571,1739967044978,-501.30101814,0.00016422,2]
[353626572,1739967044987,-1000.0,0.00016438,2]
[353626573,1739967044997,-1000.0,0.00016438,2]
[353626574,1739967045007,-397.53754396,0.00016438,2]
[353626575,1739967045017,-587.0,0.0001645,2]
[353626576,1739967045026,-500.0,0.00016509,2]
[353626577,1739967045035,-456.0,0.00016517,2]
[353626578,1739967045045,-456.0,0.00016517,2]
[353626579,1739967045054,-456.0,0.00016517,2]
[353626580,1739967045063,-456.0,0.00016517,2]
[353626581,1739967045073,-456.0,0.00016517,2]
[353626582,1739967045082,-456.0,0.00016517,2]
[353626583,1739967045091,-456.0,0.00016517,2]
[353626584,1739967045100,-456.0,0.00016517,2]
[353626585,1739967045110,-456.0,0.00016517,2]
[353626586,1739967045119,-456.0,0.00016517,2]
[353626587,1739967045129,-456.0,0.00016517,2]
[353626588,1739967045139,-456.0,0.00016517,2]
[353626589,1739967045147,-456.0,0.00016517,2]
[353626590,1739967045157,-456.0,0.00016517,2]
[353626591,1739967045166,-587.0,0.00016517,2]
[353626592,1739967045175,-587.0,0.00016517,2]
[353626593,1739967045184,-587.0,0.00016517,2]
[353626594,1739967045194,-587.0,0.00016517,2]
[353626595,1739967045203,-587.0,0.00016517,2]
[353626596,1739967045213,-587.0,0.00016517,2]
[353626597,1739967045222,-587.0,0.00016517,2]
[353626598,1739967045231,-587.0,0.00016517,2]
[353626599,1739967045240,-587.0,0.00016517,2]
[353626600,1739967045250,-587.0,0.00016517,2]
[353626601,1739967045259,-587.0,0.00016517,2]
[353626602,1739967045268,-587.0,0.00016517,2]
[353626603,1739967045279,-587.0,0.00016517,2]
[353626604,1739967045291,-587.0,0.00016517,2]
[353626605,1739967045301,-456.0,0.00016518,2]
[353626607,1739967045310,-456.0,0.00016518,2]
[353626608,1739967045319,-456.0,0.00016518,2]
[353626609,1739967045331,-456.0,0.00016518,2]
[353626610,1739967045340,-456.0,0.00016518,2]
[353626611,1739967045350,-456.0,0.00016518,2]
[353626612,1739967045359,-456.0,0.00016518,2]
[353626613,1739967045369,-456.0,0.00016518,2]
[353626614,1739967045471,-456.0,0.00016518,2]
[353626615,1739967045481,-456.0,0.00016518,2]
[353626616,1739967045490,-456.0,0.00016518,2]
[353626617,1739967045500,-456.0,0.00016518,2]
[353626618,1739967045510,-456.0,0.00016518,2]
[353626619,1739967045519,-456.0,0.00016518,2]
[353626620,1739967045528,-587.0,0.00016518,2]
[353626621,1739967045538,-587.0,0.00016518,2]
[353626622,1739967045547,-587.0,0.00016518,2]
[353626623,1739967045556,-587.0,0.00016518,2]
[353626624,1739967045565,-587.0,0.00016518,2]
[353626625,1739967045575,-587.0,0.00016518,2]
[353626626,1739967045584,-587.0,0.00016518,2]
[353626627,1739967045594,-587.0,0.00016518,2]
[353626628,1739967045603,-587.0,0.00016518,2]
[353626629,1739967045612,-587.0,0.00016518,2]
[353626630,1739967045622,-587.0,0.00016518,2]
[353626631,1739967045631,-587.0,0.00016518,2]
[353626633,1739967045641,-587.0,0.00016518,2]
[353626634,1739967045650,-587.0,0.00016518,2]
[353626635,1739967045660,-456.0,0.00016519,2]
[353626636,1739967045669,-456.0,0.00016519,2]
[353626637,1739967045679,-456.0,0.00016519,2]
[353626638,1739967045689,-456.0,0.00016519,2]
[353626639,1739967045698,-456.0,0.00016519,2]
[353626640,1739967045708,-456.0,0.00016519,2]
[353626641,1739967045718,-456.0,0.00016519,2]
[353626642,1739967045727,-456.0,0.00016519,2]
[353626643,1739967045737,-456.0,0.00016519,2]
[353626644,1739967045746,-456.0,0.00016519,2]
[353626645,1739967045755,-456.0,0.00016519,2]
[353626646,1739967045765,-456.0,0.00016519,2]
[353626647,1739967045774,-456.0,0.00016519,2]
[353626648,1739967045784,-456.0,0.00016519,2]
[353626649,1739967045794,-587.0,0.0001652,2]
[353626650,1739967045803,-587.0,0.0001652,2]
[353626651,1739967045814,-587.0,0.0001652,2]
[353626652,1739967045824,-587.0,0.0001652,2]
[353626653,1739967045833,-587.0,0.0001652,2]
[353626654,1739967045842,-587.0,0.0001652,2]
[353626655,1739967045852,-587.0,0.0001652,2]
[353626656,1739967045862,-587.0,0.0001652,2]
[353626657,1739967045871,-587.0,0.0001652,2]
[353626658,1739967045881,-587.0,0.0001652,2]
[353626659,1739967045890,-587.0,0.0001652,2]
[353626662,1739967045899,-587.0,0.0001652,2]
[353626664,1739967045908,-587.0,0.0001652,2]
[353626665,1739967045918,-587.0,0.0001652,2]
[353626666,1739967045928,-456.0,0.00016529,2]
[353626667,1739967045938,-456.0,0.00016529,2]
[353626668,1739967045948,-456.0,0.00016529,2]
[353626669,1739967045957,-456.0,0.00016529,2]
[353626670,1739967045966,-456.0,0.00016529,2]
[353626671,1739967045975,-456.0,0.00016529,2]